[Event "Late-Titled-Tuesday-Blitz-June-25-2024"]
[Site "Chess.com"]
[Date "2024.06.25"]
[Round "3"]
[White "GothamChess"]
[Black "Msb2"]
[Result "1-0"]
[WhiteElo "2745"]
[BlackElo "3069"]
[TimeControl "180+1"]
[EndTime "14:28:09 PDT"]
[Termination "GothamChess won by checkmate"]

1. e4 {[%clk 0:03:00.9]} 1... e6 {[%clk 0:03:00.3]} 2. d4 {[%clk 0:02:52.9]}
2... d5 {[%clk 0:03:00]} 3. exd5 {[%clk 0:02:53.8]} 3... exd5 {[%clk 0:03:00.9]}
4. h3 {[%clk 0:02:54.7]} 4... a6 {[%clk 0:03:00.4]} 5. c4 {[%clk 0:02:53.7]}
5... Bb4+ {[%clk 0:02:59.7]} 6. Nc3 {[%clk 0:02:52.8]} 6... Ne7 {[%clk
0:03:00.4]} 7. Nf3 {[%clk 0:02:50.6]} 7... Nbc6 {[%clk 0:03:00.4]} 8. a3 {[%clk
0:02:49.3]} 8... Bxc3+ {[%clk 0:03:00.1]} 9. bxc3 {[%clk 0:02:50.2]} 9... O-O
{[%clk 0:03:00.8]} 10. Be2 {[%clk 0:02:48.4]} 10... dxc4 {[%clk 0:03:01.3]} 11.
Bxc4 {[%clk 0:02:45.1]} 11... Nd5 {[%clk 0:03:02]} 12. Bd2 {[%clk 0:02:00.1]}
12... Re8+ {[%clk 0:03:01.1]} 13. Kf1 {[%clk 0:01:50.1]} 13... Be6 {[%clk
0:02:56.5]} 14. Bd3 {[%clk 0:01:44.3]} 14... Nb6 {[%clk 0:02:46.5]} 15. g3
{[%clk 0:01:18]} 15... Bc4 {[%clk 0:02:45]} 16. Bxc4 {[%clk 0:01:03.7]} 16...
Nxc4 {[%clk 0:02:45.9]} 17. Bf4 {[%clk 0:01:03.9]} 17... Qd5 {[%clk 0:02:44.1]}
18. Kg2 {[%clk 0:01:02.4]} 18... Ne7 {[%clk 0:02:29.9]} 19. Bxc7 {[%clk
0:00:54.6]} 19... Rac8 {[%clk 0:02:29.5]} 20. Bf4 {[%clk 0:00:53.7]} 20... Ng6
{[%clk 0:02:30]} 21. Bc1 {[%clk 0:00:45.4]} 21... Rc6 {[%clk 0:02:22.7]} 22. Re1
{[%clk 0:00:41.3]} 22... Rxe1 {[%clk 0:02:19.4]} 23. Qxe1 {[%clk 0:00:42.1]}
23... Re6 {[%clk 0:02:20.1]} 24. Qd1 {[%clk 0:00:42.6]} 24... Rf6 {[%clk
0:01:57.8]} 25. Qe2 {[%clk 0:00:29.4]} 25... h6 {[%clk 0:01:53.9]} 26. Be3
{[%clk 0:00:19.6]} 26... Re6 {[%clk 0:01:42.9]} 27. Re1 {[%clk 0:00:16]} 27...
f5 {[%clk 0:01:38.9]} 28. Qd1 {[%clk 0:00:14.6]} 28... Nxa3 {[%clk 0:01:19.3]}
29. Bc1 {[%clk 0:00:14.7]} 29... Nc4 {[%clk 0:01:17.2]} 30. Rxe6 {[%clk
0:00:14.2]} 30... Qxe6 {[%clk 0:01:18.1]} 31. Kg1 {[%clk 0:00:06.8]} 31... Ne7
{[%clk 0:01:12.4]} 32. Bf4 {[%clk 0:00:05.2]} 32... Nd5 {[%clk 0:01:13]} 33. Be5
{[%clk 0:00:04.3]} 33... Nxc3 {[%clk 0:01:10.9]} 34. Qb3 {[%clk 0:00:04.1]}
34... Nb5 {[%clk 0:00:41.6]} 35. Nd2 {[%clk 0:00:04.3]} 35... Nba3 {[%clk
0:00:42.2]} 36. Nxc4 {[%clk 0:00:04.1]} 36... Nxc4 {[%clk 0:00:43.1]} 37. Qxb7
{[%clk 0:00:04.6]} 37... Nxe5 {[%clk 0:00:43.8]} 38. dxe5 {[%clk 0:00:05]} 38...
Qc4 {[%clk 0:00:30.3]} 39. Qb8+ {[%clk 0:00:02.9]} 39... Kh7 {[%clk 0:00:27.7]}
40. Qd6 {[%clk 0:00:03]} 40... f4 {[%clk 0:00:14.8]} 41. e6 {[%clk 0:00:01.8]}
41... f3 {[%clk 0:00:15.4]} 42. Qe5 {[%clk 0:00:01.4]} 42... Qc1+ {[%clk
0:00:07.9]} 43. Kh2 {[%clk 0:00:01.4]} 43... Qc2 {[%clk 0:00:08.8]} 44. Kg1
{[%clk 0:00:01]} 44... Qb1+ {[%clk 0:00:04.2]} 45. Kh2 {[%clk 0:00:01.3]} 45...
Qc2 {[%clk 0:00:05.1]} 46. Kg1 {[%clk 0:00:01.4]} 46... Qg6 {[%clk 0:00:02.9]}
47. Qe3 {[%clk 0:00:01.3]} 47... Qe8 {[%clk 0:00:03.8]} 48. Qe4+ {[%clk
0:00:01.2]} 48... Kg8 {[%clk 0:00:04.1]} 49. Qf5 {[%clk 0:00:01.8]} 49... a5
{[%clk 0:00:04.3]} 50. Qd5 {[%clk 0:00:02.3]} 50... a4 {[%clk 0:00:04.4]} 51.
e7+ {[%clk 0:00:02.8]} 51... Kh7 {[%clk 0:00:04.7]} 52. Qd8 {[%clk 0:00:03.3]}
52... Qh5 {[%clk 0:00:03.1]} 53. e8=Q {[%clk 0:00:03.6]} 53... Qxh3 {[%clk
0:00:04]} 54. Qe4+ {[%clk 0:00:03.6]} 54... g6 {[%clk 0:00:03.2]} 55. Qee7#
{[%clk 0:00:04.2]} 1-0

[Event "Late-Titled-Tuesday-Blitz-June-25-2024"]
[Site "Chess.com"]
[Date "2024.06.25"]
[Round "3"]
[White "HalfIsCrayfish"]
[Black "Greguer"]
[Result "1-0"]
[WhiteElo "2567"]
[BlackElo "2321"]
[TimeControl "180+1"]
[EndTime "14:28:09 PDT"]
[Termination "HalfIsCrayfish won on time"]

1. d4 {[%clk 0:02:59.7]} 1... Nf6 {[%clk 0:02:57]} 2. c4 {[%clk 0:03:00.1]} 2...
e5 {[%clk 0:02:57.5]} 3. e3 {[%clk 0:02:55.1]} 3... exd4 {[%clk 0:02:52.4]} 4.
exd4 {[%clk 0:02:54.9]} 4... d5 {[%clk 0:02:53.1]} 5. Nc3 {[%clk 0:02:52.8]}
5... Be7 {[%clk 0:02:41]} 6. cxd5 {[%clk 0:02:50.9]} 6... Nxd5 {[%clk
0:02:41.9]} 7. Bc4 {[%clk 0:02:49.3]} 7... Nb6 {[%clk 0:02:41.2]} 8. Bb3 {[%clk
0:02:36.3]} 8... O-O {[%clk 0:02:40.9]} 9. Nge2 {[%clk 0:02:35.8]} 9... c6
{[%clk 0:02:41.4]} 10. O-O {[%clk 0:02:35.6]} 10... Bf5 {[%clk 0:02:41.6]} 11.
Bf4 {[%clk 0:02:34.2]} 11... N8d7 {[%clk 0:02:41]} 12. Qd2 {[%clk 0:02:31.5]}
12... Nf6 {[%clk 0:02:40.2]} 13. Rad1 {[%clk 0:02:16.1]} 13... a5 {[%clk
0:02:31.3]} 14. Ng3 {[%clk 0:02:10.7]} 14... Bg6 {[%clk 0:02:30.9]} 15. a3
{[%clk 0:02:08.9]} 15... Nfd5 {[%clk 0:02:27.4]} 16. Be3 {[%clk 0:02:05.2]}
16... Bf6 {[%clk 0:02:24.4]} 17. Nce4 {[%clk 0:02:00.5]} 17... Re8 {[%clk
0:02:24.6]} 18. Nxf6+ {[%clk 0:01:58.3]} 18... Qxf6 {[%clk 0:02:25.5]} 19. Bg5
{[%clk 0:01:49.3]} 19... Qd6 {[%clk 0:02:25.4]} 20. Rfe1 {[%clk 0:01:45.3]}
20... a4 {[%clk 0:02:22.8]} 21. Ba2 {[%clk 0:01:44.7]} 21... h6 {[%clk
0:02:20.2]} 22. Be3 {[%clk 0:01:40.5]} 22... Re7 {[%clk 0:02:10.7]} 23. Ne2
{[%clk 0:01:18.2]} 23... Nxe3 {[%clk 0:01:47.4]} 24. fxe3 {[%clk 0:01:17.5]}
24... Rae8 {[%clk 0:01:43.8]} 25. Ng3 {[%clk 0:01:11.2]} 25... Rd8 {[%clk
0:01:09.8]} 26. e4 {[%clk 0:00:50.6]} 26... Red7 {[%clk 0:01:06.6]} 27. Qe3
{[%clk 0:00:43.5]} 27... Qe7 {[%clk 0:00:57.8]} 28. Rd2 {[%clk 0:00:32.9]} 28...
Kh7 {[%clk 0:00:57.6]} 29. Red1 {[%clk 0:00:32.1]} 29... Re8 {[%clk 0:00:52.9]}
30. Re1 {[%clk 0:00:29.1]} 30... Rdd8 {[%clk 0:00:52.5]} 31. d5 {[%clk
0:00:28.3]} 31... cxd5 {[%clk 0:00:50.6]} 32. Qxb6 {[%clk 0:00:28]} 32... dxe4
{[%clk 0:00:47.8]} 33. Rxd8 {[%clk 0:00:28]} 33... Rxd8 {[%clk 0:00:47.1]} 34.
Qe3 {[%clk 0:00:26.7]} 34... Qe5 {[%clk 0:00:43.2]} 35. Qe2 {[%clk 0:00:20]}
35... Qc5+ {[%clk 0:00:40.4]} 36. Qf2 {[%clk 0:00:18.3]} 36... Qb5 {[%clk
0:00:27.6]} 37. Bb1 {[%clk 0:00:17.6]} 37... f5 {[%clk 0:00:26]} 38. h4 {[%clk
0:00:16.6]} 38... Rd5 {[%clk 0:00:23.1]} 39. h5 {[%clk 0:00:16.7]} 39... Be8
{[%clk 0:00:22.5]} 40. Rf1 {[%clk 0:00:13.1]} 40... Bd7 {[%clk 0:00:20.5]} 41.
Nxe4 {[%clk 0:00:12.8]} 41... Qc6 {[%clk 0:00:07.5]} 42. Nc3 {[%clk 0:00:11.5]}
42... Rd6 {[%clk 0:00:05.7]} 43. Bxf5+ {[%clk 0:00:11.2]} 43... Bxf5 {[%clk
0:00:06.1]} 44. Qxf5+ {[%clk 0:00:12.1]} 44... Kg8 {[%clk 0:00:06.4]} 45. Qf8+
{[%clk 0:00:11.5]} 45... Kh7 {[%clk 0:00:07]} 46. Qf5+ {[%clk 0:00:12]} 46...
Kg8 {[%clk 0:00:07.2]} 47. Qe4 {[%clk 0:00:12.7]} 47... Qb6+ {[%clk 0:00:06.8]}
48. Kh1 {[%clk 0:00:12.3]} 48... Rd8 {[%clk 0:00:06.3]} 49. Qc4+ {[%clk
0:00:11.4]} 49... Kh8 {[%clk 0:00:05.7]} 50. Qe2 {[%clk 0:00:10]} 50... Qc5
{[%clk 0:00:05.2]} 51. Qf3 {[%clk 0:00:08.7]} 51... b5 {[%clk 0:00:04.3]} 52.
Ne4 {[%clk 0:00:08.7]} 52... Qe5 {[%clk 0:00:03.8]} 53. Ng3 {[%clk 0:00:08.5]}
1-0

[Event "Late-Titled-Tuesday-Blitz-June-25-2024"]
[Site "Chess.com"]
[Date "2024.06.25"]
[Round "3"]
[White "crazy_but_lazy"]
[Black "mostafa_sakha"]
[Result "1-0"]
[WhiteElo "2641"]
[BlackElo "2443"]
[TimeControl "180+1"]
[EndTime "14:28:11 PDT"]
[Termination "crazy_but_lazy won by resignation"]

1. e4 {[%clk 0:03:00.9]} 1... e5 {[%clk 0:02:59.9]} 2. Nf3 {[%clk 0:02:54.8]}
2... Nc6 {[%clk 0:03:00]} 3. Bc4 {[%clk 0:02:50.6]} 3... Nf6 {[%clk 0:02:59.6]}
4. Ng5 {[%clk 0:02:50]} 4... d5 {[%clk 0:02:59.9]} 5. exd5 {[%clk 0:02:49]} 5...
Na5 {[%clk 0:03:00.2]} 6. Bb5+ {[%clk 0:02:47.7]} 6... c6 {[%clk 0:03:00.5]} 7.
dxc6 {[%clk 0:02:48.1]} 7... bxc6 {[%clk 0:03:01.4]} 8. Be2 {[%clk 0:02:48.1]}
8... h6 {[%clk 0:03:01.1]} 9. Nh3 {[%clk 0:02:48.2]} 9... g5 {[%clk 0:02:58.6]}
10. d3 {[%clk 0:02:47.9]} 10... Bg7 {[%clk 0:02:57.6]} 11. Nc3 {[%clk
0:02:47.4]} 11... O-O {[%clk 0:02:51.4]} 12. Ng1 {[%clk 0:02:46.6]} 12... Bf5
{[%clk 0:02:46.9]} 13. Nf3 {[%clk 0:02:15.6]} 13... Qc7 {[%clk 0:02:40.2]} 14.
Be3 {[%clk 0:02:00.4]} 14... Nd5 {[%clk 0:02:39.2]} 15. Nd2 {[%clk 0:01:59.9]}
15... Nxc3 {[%clk 0:02:24.3]} 16. bxc3 {[%clk 0:02:00.1]} 16... Rad8 {[%clk
0:02:24]} 17. O-O {[%clk 0:01:59.2]} 17... e4 {[%clk 0:02:20.5]} 18. d4 {[%clk
0:01:27.3]} 18... Bg6 {[%clk 0:02:19.8]} 19. Nb3 {[%clk 0:01:27.8]} 19... f5
{[%clk 0:02:16.3]} 20. f4 {[%clk 0:01:26]} 20... exf3 {[%clk 0:02:07.8]} 21.
Bxf3 {[%clk 0:01:23.3]} 21... f4 {[%clk 0:02:06.7]} 22. Bf2 {[%clk 0:01:21.5]}
22... Nc4 {[%clk 0:01:56.2]} 23. Qe2 {[%clk 0:01:18.9]} 23... Na3 {[%clk
0:01:47.9]} 24. Qe6+ {[%clk 0:01:10.1]} 24... Qf7 {[%clk 0:01:46.3]} 25. Qxf7+
{[%clk 0:01:03.1]} 25... Kxf7 {[%clk 0:01:45.1]} 26. Bxc6 {[%clk 0:01:02.4]}
26... Nxc2 {[%clk 0:01:42.3]} 27. Rac1 {[%clk 0:01:02.7]} 27... Rd6 {[%clk
0:01:14.4]} 28. d5 {[%clk 0:00:57.3]} 28... Bxc3 {[%clk 0:00:56.9]} 29. Bc5
{[%clk 0:00:39.3]} 29... Rxc6 {[%clk 0:00:56]} 30. dxc6 {[%clk 0:00:38.5]} 30...
Rc8 {[%clk 0:00:55.4]} 31. Bxa7 {[%clk 0:00:25.8]} 31... Rxc6 {[%clk 0:00:54.9]}
32. Bf2 {[%clk 0:00:26.6]} 32... Ra6 {[%clk 0:00:46.5]} 33. Rfd1 {[%clk
0:00:19.8]} 33... Rxa2 {[%clk 0:00:45.6]} 34. Rd7+ {[%clk 0:00:20]} 34... Ke8
{[%clk 0:00:43.4]} 35. Rb7 {[%clk 0:00:12.4]} 35... Be4 {[%clk 0:00:35.8]} 36.
Rc7 {[%clk 0:00:09.8]} 36... Be5 {[%clk 0:00:22.8]} 37. Rc4 {[%clk 0:00:06.6]}
37... Bd3 {[%clk 0:00:14.9]} 38. Rc5 {[%clk 0:00:06.7]} 38... Bb2 {[%clk
0:00:08.6]} 39. Rd1 {[%clk 0:00:05.9]} 39... Nb4 {[%clk 0:00:05.3]} 40. Rc7
{[%clk 0:00:04.3]} 40... Be5 {[%clk 0:00:03.2]} 41. Rb7 {[%clk 0:00:03.4]} 41...
Ra4 {[%clk 0:00:02.3]} 42. Rxb4 {[%clk 0:00:03.2]} 42... Bc2 {[%clk 0:00:02.3]}
43. Rxa4 {[%clk 0:00:02]} 43... Bxd1 {[%clk 0:00:02.6]} 44. Re4 {[%clk
0:00:02.4]} 44... Bxb3 {[%clk 0:00:02.2]} 45. Rxe5+ {[%clk 0:00:02.9]} 45... Kf7
{[%clk 0:00:03.1]} 46. Rc5 {[%clk 0:00:03.5]} 46... Be6 {[%clk 0:00:03.1]} 47.
Rc3 {[%clk 0:00:03.5]} 47... g4 {[%clk 0:00:04]} 48. Bd4 {[%clk 0:00:04.4]}
48... f3 {[%clk 0:00:04.4]} 49. gxf3 {[%clk 0:00:04.6]} 49... gxf3 {[%clk
0:00:05.3]} 50. Rxf3+ {[%clk 0:00:05.2]} 50... Kg6 {[%clk 0:00:04.9]} 51. Rf6+
{[%clk 0:00:05.8]} 51... Kg5 {[%clk 0:00:05.2]} 52. Rxe6 {[%clk 0:00:06.7]} 1-0

[Event "Late-Titled-Tuesday-Blitz-June-25-2024"]
[Site "Chess.com"]
[Date "2024.06.25"]
[Round "3"]
[White "Dedic8"]
[Black "carokannlover213"]
[Result "1/2-1/2"]
[WhiteElo "2940"]
[BlackElo "2670"]
[TimeControl "180+1"]
[EndTime "14:28:13 PDT"]
[Termination "Game drawn by repetition"]

1. d4 {[%clk 0:03:00.9]} 1... d5 {[%clk 0:02:58]} 2. c4 {[%clk 0:03:01.1]} 2...
c6 {[%clk 0:02:49.4]} 3. Nf3 {[%clk 0:03:01.2]} 3... Nf6 {[%clk 0:02:32.3]} 4.
e3 {[%clk 0:03:00.4]} 4... e6 {[%clk 0:02:29]} 5. Bd3 {[%clk 0:02:55.7]} 5...
dxc4 {[%clk 0:02:28.1]} 6. Bxc4 {[%clk 0:02:56.1]} 6... Nbd7 {[%clk 0:02:28.3]}
7. O-O {[%clk 0:02:55.6]} 7... Bd6 {[%clk 0:02:28.9]} 8. b3 {[%clk 0:02:48.4]}
8... O-O {[%clk 0:02:28.3]} 9. Bb2 {[%clk 0:02:48.5]} 9... Qe7 {[%clk
0:02:28.3]} 10. Nbd2 {[%clk 0:02:46.8]} 10... e5 {[%clk 0:02:27.8]} 11. dxe5
{[%clk 0:02:43]} 11... Nxe5 {[%clk 0:02:28.7]} 12. h3 {[%clk 0:02:30.3]} 12...
Rd8 {[%clk 0:02:22.7]} 13. Qe2 {[%clk 0:02:29.7]} 13... Bf5 {[%clk 0:02:18.7]}
14. Nxe5 {[%clk 0:02:09.8]} 14... Bxe5 {[%clk 0:02:18.3]} 15. Nf3 {[%clk
0:02:03.6]} 15... Bxb2 {[%clk 0:02:17]} 16. Qxb2 {[%clk 0:02:04.5]} 16... Be4
{[%clk 0:02:17.3]} 17. Ng5 {[%clk 0:02:01.2]} 17... Bd5 {[%clk 0:02:11.8]} 18.
Rad1 {[%clk 0:01:45.3]} 18... h6 {[%clk 0:02:04.4]} 19. Bxd5 {[%clk 0:01:42.5]}
19... hxg5 {[%clk 0:01:47.1]} 20. Bf3 {[%clk 0:01:40]} 20... Rxd1 {[%clk
0:01:46.4]} 21. Rxd1 {[%clk 0:01:39.8]} 21... Rd8 {[%clk 0:01:47.3]} 22. Rd4
{[%clk 0:01:28.6]} 22... Rxd4 {[%clk 0:01:24.3]} 23. Qxd4 {[%clk 0:01:28.7]}
23... c5 {[%clk 0:01:24.9]} 24. Qd3 {[%clk 0:01:21.9]} 24... g6 {[%clk
0:01:17.6]} 25. g3 {[%clk 0:01:18.5]} 25... b6 {[%clk 0:01:15.4]} 26. Kg2 {[%clk
0:01:18.5]} 26... Kg7 {[%clk 0:01:10.2]} 27. a4 {[%clk 0:01:18.3]} 27... Qe6
{[%clk 0:01:05]} 28. Qc3 {[%clk 0:01:09.1]} 28... Kg8 {[%clk 0:01:01.7]} 29. Bb7
{[%clk 0:00:57.2]} 29... Qe7 {[%clk 0:00:46.1]} 30. Bf3 {[%clk 0:00:44.6]} 30...
Qe6 {[%clk 0:00:45.6]} 31. Be2 {[%clk 0:00:36.8]} 31... Qe4+ {[%clk 0:00:42]}
32. Kh2 {[%clk 0:00:23.6]} 32... Qf5 {[%clk 0:00:40.7]} 33. Qe1 {[%clk
0:00:20.6]} 33... g4 {[%clk 0:00:36.8]} 34. hxg4 {[%clk 0:00:18]} 34... Nxg4+
{[%clk 0:00:37.7]} 35. Kg2 {[%clk 0:00:16.6]} 35... Ne5 {[%clk 0:00:38.2]} 36.
Qd2 {[%clk 0:00:09.6]} 36... Qe6 {[%clk 0:00:32.9]} 37. f4 {[%clk 0:00:06.5]}
37... Ng4 {[%clk 0:00:23.8]} 38. Qd8+ {[%clk 0:00:04.4]} 38... Kg7 {[%clk
0:00:23.3]} 39. Bxg4 {[%clk 0:00:04.1]} 39... Qxg4 {[%clk 0:00:23.8]} 40. Qd3
{[%clk 0:00:03.7]} 40... Qe6 {[%clk 0:00:17.3]} 41. e4 {[%clk 0:00:03.8]} 41...
a6 {[%clk 0:00:16.3]} 42. e5 {[%clk 0:00:03.9]} 42... Qc6+ {[%clk 0:00:14]} 43.
Qf3 {[%clk 0:00:03.8]} 43... Qd7 {[%clk 0:00:12.3]} 44. Qe2 {[%clk 0:00:03.5]}
44... Qd5+ {[%clk 0:00:11.2]} 45. Qf3 {[%clk 0:00:03.2]} 45... Qd2+ {[%clk
0:00:09.7]} 46. Kh3 {[%clk 0:00:03.5]} 46... Qd7+ {[%clk 0:00:08.9]} 47. Kg2
{[%clk 0:00:02.8]} 47... b5 {[%clk 0:00:09.3]} 48. axb5 {[%clk 0:00:02.9]} 48...
axb5 {[%clk 0:00:10.2]} 49. Qc3 {[%clk 0:00:02.6]} 49... Qd5+ {[%clk 0:00:10.3]}
50. Kf2 {[%clk 0:00:02.8]} 50... b4 {[%clk 0:00:07.3]} 51. Qc2 {[%clk
0:00:03.1]} 51... Qd4+ {[%clk 0:00:07.3]} 52. Kf3 {[%clk 0:00:02.8]} 52... Qd5+
{[%clk 0:00:07.5]} 53. Kf2 {[%clk 0:00:02.7]} 53... Qd4+ {[%clk 0:00:07.9]} 54.
Kf3 {[%clk 0:00:03.3]} 54... Kh6 {[%clk 0:00:06.9]} 55. Qh2+ {[%clk 0:00:03.2]}
55... Kg7 {[%clk 0:00:06.9]} 56. Qc2 {[%clk 0:00:03.5]} 1/2-1/2

[Event "Late-Titled-Tuesday-Blitz-June-25-2024"]
[Site "Chess.com"]
[Date "2024.06.25"]
[Round "3"]
[White "betta2004"]
[Black "oskariot"]
[Result "0-1"]
[WhiteElo "2494"]
[BlackElo "2743"]
[TimeControl "180+1"]
[EndTime "14:28:13 PDT"]
[Termination "oskariot won by resignation"]

1. Nf3 {[%clk 0:02:58.4]} 1... c5 {[%clk 0:02:59.7]} 2. b3 {[%clk 0:02:58.3]}
2... Nf6 {[%clk 0:02:59.4]} 3. Bb2 {[%clk 0:02:57.6]} 3... g6 {[%clk 0:03:00.3]}
4. e3 {[%clk 0:02:57.6]} 4... Bg7 {[%clk 0:03:00.5]} 5. d4 {[%clk 0:02:58.3]}
5... cxd4 {[%clk 0:02:58.9]} 6. exd4 {[%clk 0:02:59.2]} 6... O-O {[%clk
0:02:58.3]} 7. Nbd2 {[%clk 0:02:59.7]} 7... d5 {[%clk 0:02:58.6]} 8. Bd3 {[%clk
0:02:58.3]} 8... Nc6 {[%clk 0:02:59.1]} 9. O-O {[%clk 0:02:58]} 9... Nb4 {[%clk
0:02:59.8]} 10. Be2 {[%clk 0:02:58]} 10... Bf5 {[%clk 0:03:00.5]} 11. c3 {[%clk
0:02:55.1]} 11... Nd3 {[%clk 0:03:00.7]} 12. Bxd3 {[%clk 0:02:53.2]} 12... Bxd3
{[%clk 0:03:00.7]} 13. Re1 {[%clk 0:02:54.1]} 13... e6 {[%clk 0:02:38.7]} 14.
Ne5 {[%clk 0:02:50.6]} 14... Ba6 {[%clk 0:02:38.7]} 15. Qf3 {[%clk 0:02:48.9]}
15... Nd7 {[%clk 0:02:37.3]} 16. Ba3 {[%clk 0:02:36.5]} 16... Nxe5 {[%clk
0:02:36]} 17. dxe5 {[%clk 0:02:37.4]} 17... Re8 {[%clk 0:02:32.5]} 18. Qg3
{[%clk 0:02:35.5]} 18... Rc8 {[%clk 0:02:27.5]} 19. Rac1 {[%clk 0:02:34.3]}
19... Qa5 {[%clk 0:02:17.5]} 20. Bd6 {[%clk 0:01:49.8]} 20... Qxa2 {[%clk
0:02:17]} 21. Qe3 {[%clk 0:01:42.8]} 21... Rc6 {[%clk 0:02:03.2]} 22. Nf3 {[%clk
0:01:38]} 22... Qxb3 {[%clk 0:01:28.2]} 23. Nd4 {[%clk 0:01:37.7]} 23... Qc4
{[%clk 0:01:28.9]} 24. Nxc6 {[%clk 0:01:37.4]} 24... Qxc6 {[%clk 0:01:22.1]} 25.
Qxa7 {[%clk 0:01:37.2]} 25... Bh6 {[%clk 0:01:22.8]} 26. Rb1 {[%clk 0:01:25.8]}
26... Qxc3 {[%clk 0:01:15.4]} 27. Qc5 {[%clk 0:01:09.3]} 27... d4 {[%clk
0:01:01.5]} 28. Red1 {[%clk 0:00:50.8]} 28... Qxc5 {[%clk 0:00:47.2]} 29. Bxc5
{[%clk 0:00:51.7]} 29... d3 {[%clk 0:00:48.1]} 30. g3 {[%clk 0:00:47.1]} 30...
Rc8 {[%clk 0:00:30.6]} 31. Bd6 {[%clk 0:00:39.6]} 31... g5 {[%clk 0:00:30.3]}
32. g4 {[%clk 0:00:32.7]} 32... Bf8 {[%clk 0:00:24.8]} 33. Bxf8 {[%clk
0:00:30.8]} 33... Kxf8 {[%clk 0:00:25]} 34. Rd2 {[%clk 0:00:30.4]} 34... Rc5
{[%clk 0:00:23.8]} 35. Re1 {[%clk 0:00:29.7]} 35... Bc4 {[%clk 0:00:22.5]} 36.
f3 {[%clk 0:00:29.5]} 36... Ra5 {[%clk 0:00:21.1]} 37. Kf2 {[%clk 0:00:29.2]}
37... b5 {[%clk 0:00:21.2]} 38. Ke3 {[%clk 0:00:28.1]} 38... Kg7 {[%clk
0:00:20.5]} 39. Kd4 {[%clk 0:00:28.1]} 39... Ra4 {[%clk 0:00:20.5]} 40. Kc5
{[%clk 0:00:25.1]} 40... Ra3 {[%clk 0:00:19.4]} 41. Re4 {[%clk 0:00:17.9]} 41...
Ra1 {[%clk 0:00:18.8]} 42. f4 {[%clk 0:00:15]} 42... gxf4 {[%clk 0:00:18.2]} 43.
Rxf4 {[%clk 0:00:15.9]} 43... Re1 {[%clk 0:00:18.8]} 44. Kd6 {[%clk 0:00:14.1]}
44... Re2 {[%clk 0:00:16.4]} 45. Rd1 {[%clk 0:00:13.2]} 45... Rxh2 {[%clk
0:00:13.9]} 46. Ke7 {[%clk 0:00:13]} 46... Kg6 {[%clk 0:00:08.7]} 47. Rxf7
{[%clk 0:00:11.9]} 47... Kg5 {[%clk 0:00:09]} 48. Rg7+ {[%clk 0:00:10.3]} 48...
Kf4 {[%clk 0:00:09.5]} 49. Kd6 {[%clk 0:00:08.7]} 49... d2 {[%clk 0:00:09.3]}
50. Rf7+ {[%clk 0:00:08.2]} 50... Ke3 {[%clk 0:00:09.6]} 51. Rd7 {[%clk
0:00:05.7]} 51... Bb3 {[%clk 0:00:09.2]} 52. Rb1 {[%clk 0:00:02.1]} 52... d1=Q+
{[%clk 0:00:08.2]} 53. Rxd1 {[%clk 0:00:02.7]} 53... Bxd1 {[%clk 0:00:09.1]} 54.
Kc5 {[%clk 0:00:03.2]} 54... Bxg4 {[%clk 0:00:08.6]} 55. Kxb5 {[%clk 0:00:03.2]}
55... Kf4 {[%clk 0:00:08.4]} 56. Kc5 {[%clk 0:00:03.6]} 56... Kxe5 {[%clk
0:00:08.3]} 0-1